Cogmind - Beta 15 @@@ ROGUE MODE // 2025.09.17 @ 16:40:55 Player: shapeshifter Result: Destroyed by as-57077 with Assembled Heavy Rifle Performance ------------- Evolutions (0) 0 Regions Visited (2) 400 Robots Destroyed (19) 95 Value Destroyed (388) 388 Prototype IDs (1) 20 Alien Tech Used (0) 0 Bonus (0) 0 TOTAL SCORE: 903 Bonus ------- None Cogmind --------- Core Integrity 0/250 Matter 300/300 Energy 93/100 System Corruption 0% Temperature Hot (207) Movement Treading (160) Location -10/Mines Parts ------- > --- POWER (1) -------- (None) > --- PROPULSION (2) --- Light Treads Light Treads > --- UTILITY (2) ------ Medium Storage Unit Medium Armor Plating > --- WEAPON (2) ------- Improved Medium Laser Improved Medium Laser > --- INVENTORY (10) --- Core Shielding Core Shielding Core Shielding Core Shielding Medium Armor Plating Assault Rifle Light Assault Rifle Light Assault Rifle Grenade Launcher Peak State ------------ > --- POWER ------------ Ion Engine > --- PROPULSION ------- Light Treads Light Treads > --- UTILITY ---------- Medium Storage Unit Medium Armor Plating > --- WEAPON ----------- Improved Medium Laser Improved Medium Laser > --- INVENTORY -------- Ion Engine Core Shielding Core Shielding Core Shielding Core Shielding Core Shielding Core Shielding Medium Armor Plating Medium Armor Plating Medium Armor Plating [Rating: 13] Favorites ----------- Power Ion Engine Engine Ion Engine Propulsion Light Treads Treads Light Treads Utility Medium Storage Unit Device Seismic Detector Storage Medium Storage Unit Protection Medium Armor Plating Weapon Improved Medium Laser Energy Gun Improved Medium Laser Ballistic Gun Assault Rifle Build | -11 -10 -10 ------- Run | Yrd Mat Min Slots Evolved . | . . . Power . | . . . Propulsion . | . . . Utility . | . . . Weapon . | . . . Parts Attached 14 | 6 6 2 Power 1 | 1 . . Engine 1 | 1 . . Core . | . . . Reactor . | . . . Propulsion 2 | 2 . . Treads 2 | 2 . . Leg . | . . . Wheel . | . . . Hover . | . . . Flight . | . . . Utility 7 | 2 3 2 Device 1 | 1 . . Storage 2 | 1 1 . Processor . | . . . Hackware . | . . . Protection 4 | . 2 2 Artifact . | . . . Weapon 4 | 1 3 . Energy Gun 2 | . 2 . Energy Cannon . | . . . Ballistic Gun 2 | 1 1 . Ballistic Cannon . | . . . Launcher . | . . . Special Weapon . | . . . Impact Weapon . | . . . Slashing Weapon . | . . . Piercing Weapon . | . . . Special Melee Weapon . | . . . Unidentified Prototypes 1 | . 1 . Parts Lost 2 | . . 2 Power 1 | . . 1 Propulsion . | . . . Utility 1 | . . 1 Weapon . | . . . Highest Loss Streak 1 | . . 1 To Critical Strikes . | . . . Average Backups 8 | 5 8 9 Power . | . . . Propulsion . | 2 . . Utility 5 | . 5 6 Weapon 1 | 1 . 3 Tool/Special . | . . . Unused Backups 21 | . 10 11 Power 1 | . 1 . Propulsion 4 | . 4 . Utility 8 | . 3 5 Weapon 8 | . 2 6 Tool/Special . | . . . Average Slot Usage (%) 98 | . 98 98 Engine 13 | . 14 12 Treads 28 | . 28 28 Device 7 | . 10 . Storage 14 | . 14 14 Protection 6 | . 3 13 Energy Gun 12 | . 5 28 Ballistic Gun 14 | . 21 . Peak Build Rating 13 | 7 13 13 Average Rating 9 | 5 8 12 On Entrance 6 | . 7 13 Naked Turns . | . . . Heaviest Build 28 | 13 28 28 Greatest Support 40 | 40 40 40 Greatest Overweight (x) . | . . . Average Overweight (x) . | . . . Largest Inventory Capacity 10 | 8 10 10 Average Capacity 8 | 7 8 10 Most Carried 10 | 8 10 10 Average Carried 8 | 6 8 9 Final Capacity 10 | 8 10 10 Final Carried 10 | 8 10 9 Class Distribution -------------------- 100% | Mutant Dominant Class ---------------- Mutant | -10/Materials Mutant | -10/Mines Resources | -11 -10 -10 ----------- Run | Yrd Mat Min Matter Collected 528 | 293 141 94 Remotely . | . . . Salvage Created 748 | 128 485 135 Parts 38 | 9 24 5 Haulers Intercepted 2 | . 2 . Recyclers Shooed 2 | 1 . 1 Parts Field Recycled . | . . . Retrieved Matter . | . . . Parts Self-Destructed . | . . . Prevented . | . . . Kills | -11 -10 -10 ------- Run | Yrd Mat Min Combat Hostiles Destroyed 17 | . 8 9 Guns 17 | . 8 9 Classes Destroyed 8 | 2 4 2 Tunneler 3 | 3 . . Hauler 2 | . 2 . Recycler 1 | 1 . . Operator 1 | . 1 . Watcher 1 | . 1 . Swarmer 3 | . . 3 Grunt 8 | . 8 . Assembled 6 | . . 6 Best Kill Streak 5 | 2 5 3 Combat Bots Only 3 | . 3 3 Max Kills in Single Turn 2 | 1 1 2 Gunslinging 1 | . . 1 Exploded . | . . . Melee . | . . . Uniques/NPCs Destroyed . | . . . Combat | -11 -10 -10 -------- Run | Yrd Mat Min Hostile Shots Fired 95 | . 32 63 Missed 26 | . 6 20 Hits 69 | . 26 43 Melee 5 | . . 5 Projectile 64 | . 26 38 AOE 4 | . . 4 Critical Strikes 2 | . 1 1 Damage Taken 1011 | . 296 715 Core 254 | . 81 173 Absorbed by Shields . | . . . Core Remaining (%) 100 | 100 . . Volleys Fired 76 | 11 41 24 Largest 2 | 1 2 2 Hottest 112 | 20 112 112 Shots Fired 141 | 11 82 48 Gun 141 | 11 82 48 Cannon . | . . . Launcher . | . . . Special . | . . . Kinetic 91 | 11 80 . Thermal 50 | . 2 48 Explosive . | . . . Electromagnetic . | . . . Robot Hit Streak 12 | 3 12 5 Robot Miss Streak 6 | 2 5 6 Penetration Max . | . . . Secondary Targets 3 | . 1 2 Max Gunslinging Chain 1 | . 1 1 Shots Hit Robots 86 | 7 54 25 Core Hits 45 | 4 25 16 Critical Kills . | . . . Critical Parts Destroyed . | . . . Critical Strikes 4 | . . 4 Burn 4 | . . 4 Melee Attacks . | . . . Impact . | . . . Slashing . | . . . Piercing . | . . . Sneak Attacks . | . . . Combat Hostiles . | . . . Follow-up Attacks . | . . . Damage Inflicted 1118 | 91 569 458 Guns 1118 | 91 569 458 Cannons . | . . . Explosions . | . . . Melee . | . . . Ramming . | . . . Kinetic 644 | 91 553 . Thermal 474 | . 16 458 Explosive . | . . . Electromagnetic . | . . . Impact . | . . . Slashing . | . . . Piercing . | . . . Highest Corruption . | . . . Average Corruption . | . . . Corruption Purged . | . . . Corruption Blocked . | . . . Overload Shots . | . . . Overflow Damage . | . . . Projectiles . | . . . Explosions . | . . . Melee . | . . . Knockbacks . | . . . Impact . | . . . Kinetic . | . . . Secondary . | . . . Self-Inflicted Damage . | . . . Shots . | . . . Rammed . | . . . Targets Rammed . | . . . Kicked . | . . . Crushed . | . . . Highest Temperature 506 | . 60 506 Average Temperature 163 | . 12 208 Received Heat Transfer 180 | . 180 . Effects 4 | . . 4 Energy Bleed 1 | . . 1 Damage (minor) 1 | . . 1 Damage (major) 2 | . . 2 Siege Activations . | . . . Martial Activations . | . . . Shielding Activations . | . . . Robots Disrupted . | . . . Combat Hostiles . | . . . Robots Corrupted . | . . . Combat Hostiles . | . . . Parts Fried . | . . . Impact Corruptions . | . . . Robots Melted . | . . . Combat Hostiles . | . . . Parts Melted 3 | . . 3 Heat Transferred 1332 | . 37 1295 Parts Sabotaged . | . . . Parts Stolen . | . . . Parts Stripped . | . . . Power Chain Reactions . | . . . Alert | -11 -10 -10 ------- Run | Yrd Mat Min Maximum Alert Level . | . . . Low Security (%) 100 | 100 100 100 Level 1 . | . . . Level 2 . | . . . Level 3 . | . . . Level 4 . | . . . Level 5 . | . . . High Security . | . . . Max Security . | . . . Peak Influence 70 | 10 66 70 Initial . | . . . Average 14 | . 18 12 Influence Increases 334 | 20 244 70 Destroy 0b10 Robot/C 220 | . 160 60 Destroy 0b10 Robot/NC 40 | 20 20 . Destroy Leader 46 | . 36 10 Successful Hack 13 | . 13 . Disable Machine 15 | . 15 . Influence Decreases 334 | 20 244 70 Time Decay 334 | 20 244 70 Squads Dispatched 2 | . 2 . Investigation 1 | . 1 . Extermination . | . . . Reinforcement 1 | . 1 . Assault . | . . . Garrison . | . . . Intercept . | . . . Searches Triggered . | . . . Construction Impeded . | . . . Haulers Reinforced . | . . . Active Scanning Responses . | . . . Cargo Convoy Interrupts . | . . . Stealth | -11 -10 -10 --------- Run | Yrd Mat Min Distress Signals 1 | . 1 . Communications Jammed . | . . . Distress Signals . | . . . Times Spotted 33 | . 15 18 Peak Tracking Total 10 | . 4 10 Tactical Retreats 1 | . . 1 Traps | -11 -10 -10 ------- Run | Yrd Mat Min Traps Triggered 1 | . 1 . Indirectly . | . . . Trap Hack Attempts . | . . . Triggered . | . . . Disarmed . | . . . Reprogrammed . | . . . Reused . | . . . Traps Extracted . | . . . Installed . | . . . Triggered . | . . . Machines | -11 -10 -10 ---------- Run | Yrd Mat Min Machines Disabled 1 | . 1 . Max in Single Turn 1 | . 1 . Machines Repaired . | . . . Machines Dismantled . | . . . Machines Sabotaged . | . . . Overloaded Fab Kills . | . . . Hacking | -11 -10 -10 --------- Run | Yrd Mat Min Machines Accessed 7 | . 7 . Terminals 5 | . 5 . Fabricators . | . . . Repair Stations . | . . . Recycling Units 2 | . 2 . Scanalyzers . | . . . Garrison Access . | . . . Total Hacks 27 | . 27 . Successful 15 | . 15 . Failed 12 | . 12 . Catastrophic 1 | . 1 . Database Lockouts . | . . . Manual 18 | . 18 . Terminals 24 | . 24 . Fabricators . | . . . Repair Stations . | . . . Recycling Units 3 | . 3 . Scanalyzers . | . . . Garrison Access . | . . . Terminal Hacks 6 | . 6 . Branch Access Points 1 | . 1 . Patrol Status 1 | . 1 . Registered Components 2 | . 2 . Zone Layout 2 | . 2 . Fabricator Hacks . | . . . Repair Station Hacks . | . . . Recycling Unit Hacks 2 | . 2 . Retrieve Components 2 | . 2 . Scanalyzer . | . . . Garrison Access Hacks . | . . . Unauthorized Hacks 7 | . 7 . Terminals 7 | . 7 . Botnet 4 | . 4 . Skim 3 | . 3 . Fabricators . | . . . Repair Stations . | . . . Recycling Units . | . . . Scanalyzers . | . . . Garrison Access . | . . . Data Cores Recovered . | . . . Used . | . . . Hacking Detections 5 | . 5 . Full Trace Events . | . . . Feedback Events . | . . . Feedback Blocked . | . . . Robot Schematics Acquired . | . . . Robots Built . | . . . Authchips . | . . . Time . | . . . Total Robot Build Rating . | . . . Part Schematics Acquired . | . . . Parts Built . | . . . Authchips . | . . . Time . | . . . Total Part Build Rating . | . . . Parts Repaired . | . . . Time . | . . . Parts Recycled . | . . . Recycled Matter . | . . . Retrieved Matter . | . . . Retrieved Components 5 | . 5 . Parts Scanalyzed . | . . . Part Schematics Acquired . | . . . Parts Damaged . | . . . Bothacking | -11 -10 -10 ------------ Run | Yrd Mat Min Used RIF Installer . | . . . Robots Hacked . | . . . Non-combat . | . . . Combat . | . . . Robot Hacks Applied . | . . . Relay Couplers Released . | . . . Fabnet Peak Effective % . | . . . Robots Rewired . | . . . Allies Hacked . | . . . Hacks Repelled . | . . . Allies | -11 -10 -10 -------- Run | Yrd Mat Min Total Allies . | . . . Largest Group . | . . . Highest-Rated Group . | . . . Highest-Rated Ally . | . . . Total Orders . | . . . Ally Attacks . | . . . Total Damage . | . . . Kills . | . . . Allies Corrupted . | . . . Allies Melted . | . . . Intel | -11 -10 -10 ------- Run | Yrd Mat Min Active Infowar (turns) 652 | 50 602 . Seismic 652 | 50 602 . Robot Analysis Total . | . . . Derelict Logs Recovered 1 | . . 1 Drone Launches . | . . . Drone Recoveries . | . . . Exploration | -11 -10 -10 ------------- Run | Yrd Mat Min Turns Passed 1359 | 159 812 388 Spaces Moved 682 | 83 408 191 Core 13 | 13 . . Treads 669 | 70 408 191 Legs . | . . . Wheels . | . . . Hover . | . . . Flight . | . . . Fastest Speed 50 | 50 160 160 Average Speed 157 | 142 160 160 Slowest Speed 160 | 160 160 160 Overloaded Moves . | . . . Propulsion Burnouts . | . . . Robots Hopped . | . . . Potential Cave-ins . | . . . Cave-ins Triggered . | . . . Exploration Rate (%) 36 | 4 72 33 Regions Visited 2 Branch Regions 1 Pre-discovered Areas . | . . . Known Exits Taken 1 | . 1 . Unknown Exits Taken 1 | 1 . . Scrap Searched 1 | . . 1 Spaces Dug . | . . . Terrain Destroyed . | . . . Melee . | . . . Projectile . | . . . AOE . | . . . Terrain Rammed . | . . . Walls Destroyed . | . . . Machines Disabled . | . . . Actions | -11 -10 -10 --------- Run | Yrd Mat Min Total 839 | 112 499 228 Wait 18 | . 17 1 Move 680 | 82 407 191 Hop . | . . . Pick Up 31 | 13 13 5 Fast Attach 4 | 1 3 . Attach 6 | 5 . 1 Detach . | . . . Swap 4 | . 3 1 Drop 20 | . 15 5 Fire 76 | 11 41 24 Melee . | . . . Ram . | . . . Kick . | . . . Crush . | . . . Escape Stasis . | . . . Rewire . | . . . Trap . | . . . Miscellaneous . | . . . Route ------- -11/Scrapyard -10/Materials (discovered 3 exits: [*Mat x2] / *Min) -10/Mines History --------- Turn | Location | Event 9 | -11/Scrapyard | Discovered new exit (range 15) 160 | -11/Scrapyard | Entered Materials 252 | -10/Materials | Discovered new exit (range 15) 314 | -10/Materials | Build established: Mutant 556 | -10/Materials | Discovered new exit (range 7) 892 | -10/Materials | Identified exit to Mines 972 | -10/Materials | Entered Mines 1145 | -10/Mines | Found a hidden stash of uninstalled traps 1161 | -10/Mines | Learned location of 1 exit from Materials 1162 | -10/Mines | Assembled infested the area 1271 | -10/Mines | Core integrity fell below 50% 1326 | -10/Mines | Core integrity fell below 20% 1360 | -10/Mines | Destroyed by as-57077 with Assembled Heavy Rifle Last Messages --------------- 01275_ The unstable cave ceiling collapses. 01291_ Med. Armor Plating destroyed. 01294_ as-99921 destroyed. 01301_ as-30723 destroyed. 01302_ Acquired 15 matter. 01325_ as-84502 suffers critical hit (Burn). 01328_ Ion Engine destroyed. 01328_ as-84502 destroyed. 01331_ as-79890 suffers critical hit (Burn). 01334_ Overheating: Imp. Medium Laser damaged (-36). 01334_ as-79890 suffers critical hit (Burn). 01334_ as-79890 destroyed. 01337_ Overheating: Imp. Medium Laser damaged (-51). 01337_ Overheating: Imp. Medium Laser damaged (-9). 01339_ Overheating: Energy bleed (-18). 01358_ as-86682 destroyed. 01358_ Switching to secondary target: as-57077. Map ----- +----------------------------------------------------+ | | | ?????????????????????????????????????????????????? | | ???????????????????????####??????????????????????? | | ??????????????????????## ##?????????????????????? | | ?????####????????###??# #?????????????????????? | | ?????# ##???????# #### #######???????????????? | | ?????# ###?????# ## ##??????????????? | | ??????# & &####### #??????????????? | | ?????## & ###### #??????????????? | | ????## ##?????????????????????? | | ##### ##### ##????????????????????? | | # ##??## ##???????????????????? | | #???## ####????????????????? | | #????## %% #????????????????? | | ##????## ### #????????????????? | | ## ##????## % #### #????????????????? | | #### ####### % ### #????????????????? | | #??# |! [### ###?# ###????????????????? | | [#??## ###### #?# #???# #??????????????????? | | #???## #????? #?# #?### #??????????????????? | | #????## #????# ### ### ####???????????????? | | ##????## #????# ## #???????????????? | | #?????# #????##### ## % #??????????????? | | ??????# #????????# ## #?????????????? | | ??????## # #????????# #### ##< #????????????? | | ???????#### #????????# u@%|a! #????????????? | | ??????????# #????????##### %# #??????????? | | ??????????# #???????????## # #?????????? | | ??????????# #????????????## # #?????????? | | ??????????# #?????????????# # ##?????????? | | ??????????# #?????????????###### ?????????? | | ??????????# #??????????????????? # ????????? | | ??????????# #???????????????????? ### ???????? | | ??????????# #???????????????????? #??# ???????? | | ??????????# #?????????????????????#???? ????????? | | ??????##### #???????????????????????????????????? | | ??????# #???????????????????????????????????? | | ????### ### #???????????????????????????????????? | | ????# #?# #???????????????????????????????????? | | ????# ###?# ??????????????????????????????????? | | ????# #???######?????????????????????????????????? | | ###?# #??????????????????????????????????????????? | | # ## #####??????????????????????????????????????? | | ##?????????????????????????????????????? | | ##????????????????????????????????????? | | ### ##???????????????????????????????????? | | ######?## #???????????????????????????????????? | | ????????## #???????????????????????????????? | | ?????????# #???????????????????????????????? | | ????????? #####???????????????????????????????? | +----------------------------------------------------+ Best States ------------- Heat Dissipation 25 Energy Generation 10 Energy Capacity 250 Matter Stores 300 Matter Capacity 300 Sight Range 16 Terrain Scan Density 10 Armor Coverage 225 Evasion (%) 50 Recoil Reduction 2 Item Schematics ----------------- None Robot Schematics ------------------ None Fabricated ------------ Nothing Repaired ---------- Nothing Alien Tech Used ----------------- None Achievements -------------- None Challenges ------------ None Game ------ Seed QuantumAlloyAirjet Manual? 0 Play Time 00:09:40 Cumulative 297.8 hours Start 2025.09.17 @ 15:59:13 End 2025.09.17 @ 16:40:55 Sessions 3 Manual Loads 0 Difficulty Rogue Special Mode None Game No. 420 Rogue 420 Adventurer 0 Explorer 0 Win Type - Total 9 Types 5/0/1/2/1/0/0/0/0/0 Lore% 86 Gallery% 81 Achievement% 64 Wizard Run 0 Options --------- Layout 1 ASCII 0 Keyboard 0 Movement Mouse Keybinds 0 Fullscreen 1 Font 24/Smallcaps Map View 50x40 Zoom Use 0% Tactical HUD 1 Map Filters NONE Filters NONE Steam 1 RUN: 44aa7f76-8e62-4267-ac0d-414f68d210eb